bitfinex/quotes_SOLUSD_20230904
["timestamp","ask_amount","ask_price","bid_price","bid_amount"]
[1693806107423,12.84461036,19.746,19.729,55.0]
[1693806108218,4.94461036,19.746,19.729,55.0]
[1693806109614,4.94461036,19.746,19.725,11.72751]
[1693806109924,33.533,19.74,19.725,11.72751]
[1693806110314,20.0,19.739,19.725,11.72751]
[1693806110519,20.0,19.739,19.72,25.63]
[1693806112621,20.0,19.739,19.721,55.0]
[1693806121754,35.53853954,19.739,19.721,55.0]
[1693806123439,35.53853954,19.739,19.72,25.63]
[1693806123635,77.07606488,19.739,19.72,25.63]
[1693806125053,77.07606488,19.739,19.721,55.0]
[1693806129656,129.51240658,19.739,19.721,55.0]
[1693806133758,129.51240658,19.739,19.72,25.63]
[1693806133947,99.5333417,19.738,19.72,25.63]
[1693806134152,99.5333417,19.738,19.715,39.70791074]
[1693806134347,99.5333417,19.738,19.714,15.00456389]
[1693806134348,99.5333417,19.738,19.716,45.25550551]
[1693806135267,99.5333417,19.738,19.717,55.0]
[1693806135946,99.5333417,19.738,19.718,20.0]
[1693806136160,99.5333417,19.738,19.719,55.0]
[1693806139865,99.5333417,19.738,19.72,25.63]
[1693806140068,99.5333417,19.738,19.721,55.0]
[1693806152360,99.5333417,19.738,19.712,98.35604372]
[1693806152361,25.63,19.73,19.712,98.35604372]
[1693806152762,20.0,19.729,19.712,98.35604372]
[1693806152975,20.0,19.729,19.712,41.09127788]
[1693806153171,20.0,19.729,19.71,25.63]
[1693806153367,20.0,19.729,19.711,25.25550551]
[1693806154055,20.0,19.729,19.712,55.0]
[1693806164303,61.06288031,19.729,19.712,55.0]
[1693806167907,76.32454359,19.729,19.712,55.0]
[1693806174611,20.0,19.729,19.712,55.0]
[1693806174812,20.0,19.729,19.713,25.25550551]
[1693806175025,20.0,19.729,19.714,55.0]
[1693806175215,20.0,19.729,19.714,80.25550551]
[1693806177807,20.0,19.733,19.714,80.25550551]
[1693806178003,20.0,19.733,19.715,25.25550551]
[1693806178312,93.6947,19.734,19.72,25.63]
[1693806178505,93.6947,19.734,19.721,55.0]
[1693806189023,93.6947,19.734,19.72,25.63]
[1693806189219,93.6947,19.734,19.711,57.26476584]
[1693806189424,93.6947,19.734,19.712,20.0]
[1693806189923,93.6947,19.734,19.712,89.000605]
[1693806190628,93.6947,19.734,19.713,55.0]
[1693806190923,93.6947,19.734,19.714,20.0]
[1693806191126,93.6947,19.734,19.715,55.0]
[1693806191309,93.6947,19.734,19.716,20.0]
[1693806191516,93.6947,19.734,19.717,55.0]
[1693806191716,93.6947,19.734,19.718,20.0]
[1693806191916,93.6947,19.734,19.719,55.0]
[1693806192723,93.6947,19.734,19.712,69.000605]
[1693806192931,25.63,19.73,19.713,55.0]
[1693806193132,20.0,19.729,19.712,55.0]
[1693806193516,20.0,19.729,19.711,69.00060584]
[1693806193826,20.0,19.729,19.711,11.73584]
[1693806195628,20.0,19.729,19.712,55.0]
[1693806199214,20.0,19.729,19.711,55.0]
[1693806205245,35.08215009,19.729,19.711,55.0]
[1693806208636,35.08215009,19.729,19.711,80.25550551]
[1693806208822,35.08215009,19.729,19.711,25.25550551]
[1693806209024,35.08215009,19.729,19.71,25.63]
[1693806209224,35.08215009,19.729,19.71,50.88550551]
[1693806209532,35.08215009,19.729,19.711,25.25550551]
[1693806209533,20.0,19.729,19.711,25.25550551]
[1693806210234,20.0,19.729,19.712,55.0]
[1693806220046,20.0,19.729,19.712,54.5]
[1693806220047,0.49999999,19.728,19.712,54.5]
[1693806243672,0.49999999,19.728,19.713,25.25550551]
[1693806243856,25.63,19.74,19.72,25.63]
[1693806243857,0.49999999,19.733,19.72,25.63]
[1693806244061,0.49999999,19.739,19.72,25.63]
[1693806244252,20.49999999,19.739,19.721,55.0]
[1693806248971,20.49999999,19.739,19.721,66.72989]
[1693806249972,0.49999999,19.739,19.73,25.63]
[1693806250157,4.94461036,19.746,19.731,55.0]
[1693806295411,24.94461036,19.749,19.731,55.0]
[1693806319125,18.54819935,19.748,19.73,25.63]
[1693806319323,7.9,19.745,19.73,25.63]
[1693806319631,4.94461036,19.744,19.73,25.63]
[1693806319822,4.94461036,19.746,19.73,25.63]
[1693806320528,4.94461036,19.746,19.731,55.0]
[1693806327530,25.63,19.74,19.72,25.63]
[1693806327731,24.94461036,19.739,19.722,25.25550551]
[1693806328930,24.94461036,19.739,19.723,55.0]
[1693806330927,24.94461036,19.739,19.722,55.0]
[1693806331125,24.94461036,19.739,19.722,80.25550551]
[1693806334326,24.94461036,19.739,19.72,25.63]
[1693806335329,32.84761036,19.739,19.72,25.63]
[1693806335535,32.84761036,19.739,19.721,55.0]
[1693806336233,24.94461036,19.739,19.721,55.0]
[1693806339241,32.84761036,19.739,19.721,55.0]
[1693806339437,32.84761036,19.739,19.72,25.63]
[1693806339438,24.94461036,19.739,19.72,25.63]
[1693806339628,32.84761036,19.739,19.72,25.63]
[1693806339823,99.368,19.738,19.72,25.63]
[1693806340152,4.94461036,19.737,19.72,25.63]
[1693806340844,4.94461036,19.737,19.721,55.0]
[1693806354642,20.49047959,19.737,19.721,55.0]
[1693806372872,20.49047959,19.737,19.72,25.63]
[1693806374372,20.49047959,19.737,19.721,55.0]
[1693806396318,25.63,19.73,19.714,25.25550551]
[1693806396503,25.63,19.73,19.712,57.26476584]
[1693806396504,4.94461036,19.728,19.712,57.26476584]
[1693806396693,4.94461036,19.728,19.713,25.25550551]
[1693806397702,4.94461036,19.728,19.714,55.0]
[1693806397998,4.94461036,19.728,19.714,80.25550551]
[1693806401695,4.94461036,19.728,19.714,55.0]
[1693806401895,4.94461036,19.728,19.715,25.25550551]
[1693806402202,4.94461036,19.728,19.716,55.0]
[1693806402410,4.94461036,19.734,19.716,55.0]
[1693806403004,25.63,19.73,19.716,55.0]
[1693806403306,24.94461036,19.729,19.716,55.0]
[1693806416017,24.94461036,19.729,19.711,25.63]
[1693806416203,25.63,19.72,19.7,41.01203957]
[1693806416408,24.94461036,19.719,19.7,25.63]
[1693806418109,32.85561036,19.719,19.7,25.63]
[1693806419513,32.85561036,19.719,19.701,55.0]
[1693806420828,24.94461036,19.719,19.701,55.0]
[1693806422925,32.85561036,19.719,19.701,55.0]
[1693806425114,24.94461036,19.719,19.701,55.0]
[1693806431634,32.85561036,19.719,19.701,55.0]
[1693806432337,97.70384071,19.719,19.701,55.0]
[1693806458246,116.58846765,19.719,19.701,55.0]
[1693806458431,12.85661036,19.717,19.701,55.0]
[1693806470852,52.7997864,19.717,19.701,55.0]
[1693806471354,44.8877864,19.717,19.701,55.0]
[1693806474844,52.7997864,19.717,19.701,55.0]
[1693806476552,44.8877864,19.717,19.701,55.0]
[1693806479761,44.8877864,19.717,19.695,40.60882799]
[1693806479943,25.63,19.71,19.69,25.63]
[1693806480140,20.0,19.709,19.69,65.75176559]
[1693806480360,20.0,19.709,19.69,25.63]
[1693806480754,20.0,19.709,19.69,83.903801]
[1693806481138,20.0,19.709,19.69,37.37836]
[1693806481345,27.915,19.709,19.69,37.37836]
[1693806481741,20.0,19.709,19.69,37.37836]
[1693806482457,20.0,19.709,19.69,52.8001874]
[1693806483448,20.0,19.709,19.691,55.0]
[1693806488066,25.63,19.71,19.691,55.0]
[1693806488365,20.0,19.709,19.691,55.0]
[1693806495263,20.0,19.709,19.691,95.31284916]
[1693806495457,20.0,19.709,19.692,11.74717]
[1693806495671,20.0,19.709,19.693,55.0]
[1693806498876,69.17249244,19.712,19.693,55.0]
[1693806499077,25.63,19.72,19.694,31.74597]
[1693806499078,33.541,19.72,19.694,31.74597]
[1693806499278,99.3204,19.718,19.695,66.74538]
[1693806499474,0.49999999,19.717,19.696,20.0]
[1693806499678,0.49999999,19.717,19.697,55.0]
[1693806499879,0.49999999,19.717,19.698,20.0]
[1693806500066,0.49999999,19.717,19.699,55.0]
[1693806501565,0.49999999,19.718,19.699,55.0]
[1693806514693,25.63,19.71,19.699,55.0]
[1693806514999,20.0,19.709,19.7,55.0]
[1693806515291,20.0,19.709,19.688,7.9934]
[1693806515996,20.0,19.709,19.689,25.63]
[1693806516191,20.0,19.709,19.69,82.61121825]
[1693806516803,20.0,19.709,19.69,67.18939085]
[1693806517007,20.0,19.709,19.691,55.0]
[1693806528517,20.0,19.709,19.69,25.63]
[1693806530013,20.0,19.709,19.691,55.0]
[1693806531015,27.915,19.709,19.691,55.0]
[1693806537215,20.0,19.709,19.691,55.0]
[1693806543929,27.915,19.709,19.691,55.0]
[1693806548636,20.0,19.709,19.691,55.0]
[1693806556142,73.58054821,19.71,19.691,55.0]
[1693806556327,20.0,19.709,19.691,55.0]
[1693806557340,27.915,19.709,19.691,55.0]
[1693806557640,20.0,19.709,19.691,55.0]
[1693806582657,20.0,19.709,19.691,66.74776]
[1693806584763,27.915,19.709,19.691,66.74776]
[1693806586463,20.0,19.709,19.691,66.74776]
[1693806587561,27.915,19.709,19.69,25.63]
[1693806588863,20.0,19.709,19.691,55.0]
[1693806599175,27.915,19.709,19.691,55.0]
[1693806601767,20.0,19.709,19.691,55.0]
[1693806606278,20.0,19.709,19.687,41.01928933]
[1693806606475,27.915,19.709,19.688,20.0]
[1693806606680,118.6324,19.709,19.688,20.0]
[1693806607170,118.6324,19.709,19.687,48.578772]
[1693806607378,118.6324,19.709,19.688,20.0]
[1693806607575,118.6324,19.709,19.69,25.63]
[1693806608073,118.6324,19.709,19.691,55.0]
[1693806611864,20.0,19.709,19.691,55.0]
[1693806612170,0.49999999,19.713,19.692,87.01820886]
[1693806612358,0.49999999,19.718,19.7,25.63]
[1693806612561,0.49999999,19.718,19.701,55.0]
[1693806612762,40.18324871,19.719,19.701,55.0]
[1693806612962,59.06138027,19.719,19.701,55.0]
[1693806613371,18.87813156,19.718,19.701,55.0]
[1693806613674,25.63,19.71,19.692,67.01820886]
[1693806613980,20.0,19.709,19.69,25.63]
[1693806614475,27.915,19.709,19.69,25.63]
[1693806614674,20.0,19.709,19.69,25.63]
[1693806614885,20.0,19.709,19.691,55.0]
[1693806615265,20.0,19.709,19.69,25.63]
[1693806616771,20.0,19.709,19.691,55.0]
[1693806620285,35.53756344,19.709,19.691,55.0]
[1693806636278,35.53756344,19.709,19.69,25.63]
[1693806637701,35.53756344,19.709,19.691,55.0]
[1693806644408,15.53756344,19.709,19.692,11.74717]
[1693806644604,15.53756344,19.709,19.693,55.0]
[1693806644808,15.53756344,19.709,19.694,11.74597]
[1693806645107,15.53756344,19.709,19.695,55.0]
[1693806647395,15.53756344,19.709,19.694,11.74597]
[1693806648905,15.53756344,19.709,19.695,55.0]
[1693806674336,15.53756344,19.709,19.69,25.63]
[1693806675828,15.53756344,19.709,19.691,55.0]
[1693806679234,34.415695,19.709,19.691,55.0]
[1693806684243,34.415695,19.709,19.688,34.421727]
[1693806684426,34.415695,19.709,19.689,20.0]
[1693806684939,34.415695,19.709,19.687,20.0]
[1693806685435,34.415695,19.709,19.688,55.0]
[1693806685638,34.415695,19.709,19.69,25.63]
[1693806685819,34.415695,19.709,19.691,55.0]
[1693806691241,42.330695,19.709,19.691,55.0]
[1693806691743,68.83795334,19.709,19.691,55.0]
[1693806692244,60.92295334,19.709,19.691,55.0]
[1693806699851,105.28009796,19.709,19.691,55.0]
[1693806701143,78.77283962,19.709,19.691,55.0]
[1693806703649,59.89470806,19.709,19.691,55.0]
[1693806716855,78.77283962,19.709,19.692,11.74717]
[1693806717049,78.77283962,19.709,19.693,55.0]
[1693806717455,18.87813156,19.708,19.693,55.0]
[1693806719848,44.35714462,19.709,19.693,66.74657]
[1693806726469,63.23527618,19.709,19.693,11.74657]
[1693806726768,18.87813156,19.708,19.693,51.70187726]
[1693806728452,18.87813156,19.708,19.694,55.0]
[1693806729668,44.35714462,19.709,19.694,55.0]
[1693806760589,44.35714462,19.709,19.693,11.74657]
[1693806760787,71.11450962,19.709,19.693,11.74657]
[1693806760994,63.19950962,19.708,19.68,25.63]
[1693806761185,63.19950962,19.708,19.685,11.75134]
[1693806761490,63.19950962,19.708,19.686,20.0]
[1693806761679,71.11450962,19.708,19.686,20.0]
[1693806762281,63.19950962,19.708,19.687,55.0]
[1693806762482,63.19950962,19.708,19.688,20.0]
[1693806762685,71.11450962,19.708,19.689,55.0]
[1693806764792,71.11450962,19.708,19.688,20.0]
[1693806764793,25.63,19.7,19.688,20.0]
[1693806764981,25.63,19.7,19.686,20.0]
[1693806766097,25.63,19.7,19.687,55.0]
[1693806766278,25.63,19.7,19.688,20.0]
[1693806766483,25.63,19.7,19.689,55.0]
[1693806779799,20.0,19.699,19.682,55.0]
[1693806780097,20.0,19.699,19.676,55.14010033]
[1693806780297,97.2506,19.698,19.676,55.14010033]
[1693806781101,97.2506,19.698,19.677,55.140101]
[1693806781601,97.2506,19.698,19.68,65.25233501]
[1693806781785,97.2506,19.698,19.681,55.0]
[1693806789692,112.53094534,19.698,19.681,55.0]
[1693806791316,97.2506,19.698,19.681,66.75373]
[1693806802832,7.915,19.709,19.682,20.0]
[1693806803021,97.0568,19.708,19.69,25.63]
[1693806803535,97.0568,19.708,19.691,55.0]
[1693806804524,112.29753132,19.708,19.691,55.0]
[1693806806533,131.13989632,19.708,19.691,55.0]
[1693806819241,97.0568,19.708,19.691,55.0]
[1693806819539,115.899165,19.708,19.691,55.0]
[1693806821224,18.842365,19.707,19.691,55.0]
[1693806821830,18.842365,19.707,19.691,95.06500761]
[1693806824742,18.842365,19.707,19.691,40.06500761]
[1693806824931,18.842365,19.707,19.688,40.42661249]
[1693806824932,52.332365,19.707,19.688,40.42661249]
[1693806825132,83.02096215,19.707,19.689,20.0]
[1693806825944,127.37810677,19.707,19.686,20.0]
[1693806826144,119.46210677,19.707,19.686,31.75075]
[1693806827441,119.46210677,19.707,19.687,55.0]
[1693806827642,119.46210677,19.707,19.688,20.0]
[1693806827850,119.46210677,19.707,19.689,55.0]
[1693806835046,160.41642148,19.707,19.689,55.0]
[1693806839642,141.57405648,19.707,19.689,55.0]
[1693806840041,141.57405648,19.707,19.689,95.60913705]
[1693806850955,100.61974177,19.707,19.689,95.60913705]
[1693806872282,100.61974177,19.707,19.689,40.60913705]
[1693806872486,119.46210677,19.707,19.688,20.0]
[1693806872684,119.46210677,19.707,19.687,20.0]
[1693806872987,119.46210677,19.707,19.687,45.255506]
[1693806873789,119.46210677,19.707,19.688,55.0]
[1693806873996,119.46210677,19.707,19.689,20.0]
[1693806874173,119.46210677,19.707,19.69,55.0]
[1693806881991,25.63,19.7,19.686,11.75075]
[1693806882185,111.2308,19.699,19.686,11.75075]
[1693806882586,111.2308,19.699,19.676,25.25550551]
[1693806882777,111.2308,19.699,19.68,52.58849454]
[1693806882977,111.2308,19.699,19.68,78.218494]
[1693806883287,111.2308,19.699,19.68,118.74235186]
[1693806883587,111.2308,19.699,19.681,55.0]
[1693806894193,126.69855011,19.699,19.681,55.0]
[1693806907009,111.2308,19.699,19.681,66.75373]
[1693806907310,111.2308,19.699,19.682,11.75313]
[1693806907495,111.2308,19.699,19.683,55.0]
[1693806912098,111.2308,19.699,19.683,66.75254]
[1693806918413,111.2308,19.699,19.683,81.8287595]
[1693806919709,111.2308,19.699,19.683,11.75254]
[1693806920010,18.842365,19.698,19.68,66.15385786]
[1693806920918,18.842365,19.698,19.68,25.63]
[1693806921116,26.761365,19.698,19.68,25.63]
[1693806921316,71.11850962,19.698,19.68,25.63]
[1693806922916,71.11850962,19.698,19.681,55.0]
[1693806923417,63.19950962,19.698,19.681,55.0]
[1693806928127,71.11850962,19.698,19.681,55.0]
[1693806928319,83.02396215,19.698,19.681,55.0]
[1693806928525,44.35714462,19.697,19.681,55.0]
[1693806928716,18.842365,19.696,19.681,55.0]
[1693806934330,18.842365,19.696,19.676,39.90248857]
[1693806934530,18.842365,19.696,19.677,20.0]
[1693806935238,18.842365,19.696,19.675,75.1401]
[1693806935922,18.842365,19.696,19.676,55.0]
[1693806936124,18.842365,19.696,19.677,20.0]
[1693806936323,18.842365,19.696,19.678,55.0]
[1693806936527,18.842365,19.696,19.679,20.0]
[1693806936724,18.842365,19.696,19.68,55.0]
[1693806943638,44.35714462,19.697,19.68,55.0]
[1693806946629,44.35714462,19.697,19.679,20.0]
[1693806946832,25.63,19.69,19.674,15.1249365]
[1693806947036,20.0,19.689,19.675,55.0]
[1693806947842,20.0,19.695,19.675,55.0]
[1693806949738,97.5202,19.696,19.675,11.75732]
[1693806949940,97.5202,19.696,19.676,20.0]
[1693806951029,112.96074877,19.696,19.677,55.0]
[1693806951229,112.96074877,19.696,19.678,20.0]
[1693806951443,112.96074877,19.696,19.679,55.0]
[1693806953255,97.5202,19.696,19.679,55.0]
[1693806954047,97.5202,19.696,19.68,25.63]
[1693806954249,97.5202,19.696,19.681,55.0]
[1693806965953,25.63,19.7,19.681,55.0]
[1693806966257,20.0,19.699,19.681,55.0]
[1693806967157,20.0,19.699,19.681,80.63]
[1693806968067,20.0,19.699,19.681,92.38373]
[1693806971449,20.0,19.699,19.682,11.75313]
[1693806971660,20.0,19.699,19.683,55.0]
[1693806971852,20.0,19.699,19.683,66.75254]
[1693807012185,20.0,19.699,19.683,11.75254]
[1693807013479,20.0,19.699,19.684,55.0]
[1693807020385,20.0,19.699,19.684,66.75194]
[1693807029592,20.0,19.699,19.684,11.75194]
[1693807030595,20.0,19.699,19.659,401.4]
[1693807030596,7.923,19.688,19.659,401.4]
[1693807030796,7.923,19.688,19.645,106.26901641]
[1693807030797,25.63,19.68,19.66,25.63]
[1693807030977,20.0,19.679,19.66,25.63]
[1693807031382,20.0,19.679,19.66,58.961105]
[1693807031583,11.75403,19.678,19.66,58.961105]
[1693807032881,11.75403,19.678,19.66,57.961105]
[1693807033080,0.99999999,19.677,19.66,57.961105]
[1693807033501,11.75403,19.676,19.661,55.0]
[1693807033700,11.75403,19.676,19.662,20.0]
[1693807033887,11.75403,19.676,19.67,25.63]
[1693807034085,11.75403,19.676,19.671,55.0]
[1693807035294,4.94461036,19.689,19.671,55.0]
[1693807035494,11.75403,19.688,19.671,80.63]
[1693807035689,4.94461036,19.687,19.671,80.63]
[1693807036292,11.75403,19.686,19.671,80.63]
[1693807036600,4.94461036,19.685,19.671,80.63]
[1693807036984,4.94461036,19.683,19.671,80.63]
[1693807037194,11.75403,19.682,19.671,80.63]
[1693807046511,11.75403,19.682,19.671,120.28447154]
[1693807050794,11.75403,19.682,19.671,80.63]
[1693807076028,11.75403,19.682,19.671,105.88550551]
[1693807089454,11.75403,19.682,19.671,50.88550551]
[1693807089659,11.75403,19.682,19.671,25.63]
[1693807089860,11.75403,19.682,19.67,65.81292682]
[1693807090046,4.94461036,19.681,19.67,65.81292682]
[1693807090759,11.75403,19.682,19.67,65.81292682]
[1693807090760,11.75403,19.68,19.67,65.81292682]
[1693807090956,11.75403,19.68,19.671,55.0]
[1693807091155,11.75403,19.68,19.67,25.63]
[1693807091350,11.75403,19.68,19.669,25.63]
[1693807091656,4.94461036,19.679,19.663,39.73157091]
[1693807091861,4.94461036,19.679,19.664,20.0]
[1693807092066,11.75403,19.68,19.664,20.0]
[1693807092357,4.94461036,19.679,19.663,20.0]
[1693807092764,11.75403,19.678,19.664,30.542611]
[1693807093347,11.75403,19.678,19.665,20.0]
[1693807093658,11.75403,19.678,19.665,75.0]
[1693807098079,11.75403,19.678,19.665,100.25550551]
[1693807117485,11.75403,19.678,19.666,25.25550551]
[1693807117669,11.75403,19.678,19.667,55.0]
[1693807117983,11.75403,19.678,19.668,20.0]
[1693807118178,11.75403,19.678,19.669,55.0]
[1693807118980,11.75403,19.678,19.666,25.25550551]
[1693807119169,11.75403,19.678,19.661,25.25550551]
[1693807119366,4.94461036,19.677,19.661,25.25550551]
[1693807119775,4.94461036,19.677,19.661,50.88550551]
[1693807120975,4.94461036,19.675,19.661,50.88550551]
[1693807121571,11.75403,19.674,19.661,50.88550551]
[1693807121772,11.75403,19.674,19.662,55.0]
[1693807140785,11.75403,19.674,19.663,20.0]
[1693807140985,11.75403,19.674,19.664,55.0]
[1693807141200,11.75403,19.674,19.665,45.25550551]
[1693807141498,11.75403,19.674,19.666,55.0]
[1693807141682,11.75403,19.674,19.667,25.25550551]
[1693807141882,11.75403,19.674,19.668,75.0]
[1693807142800,11.75403,19.674,19.668,163.163352]
[1693807145403,11.75403,19.674,19.668,75.0]
[1693807153508,11.75403,19.674,19.668,115.40264361]
[1693807160714,11.75403,19.674,19.668,75.0]
[1693807162205,3e-05,19.674,19.668,75.0]
[1693807162409,7.924,19.687,19.668,20.0]
[1693807162714,7.924,19.687,19.66,50.88550551]
[1693807162715,4.94461036,19.687,19.665,20.0]
[1693807162915,4.94461036,19.687,19.664,20.0]
[1693807163702,4.94461036,19.685,19.665,55.0]
[1693807163906,4.94461036,19.685,19.666,20.0]
[1693807164106,4.94461036,19.685,19.667,55.0]
[1693807164303,4.94461036,19.685,19.668,20.0]
[1693807164503,4.94461036,19.685,19.669,55.0]
[1693807164722,4.94461036,19.686,19.669,55.0]
[1693807165227,12.86861036,19.686,19.669,55.0]
[1693807165519,4.94461036,19.686,19.669,55.0]
[1693807172924,25.63,19.68,19.663,40.93136755]
[1693807173234,4.94461036,19.679,19.66,92.24391932]
[1693807173425,24.94461036,19.679,19.66,92.24391932]
[1693807174032,24.94461036,19.679,19.66,117.87391932]
[1693807174233,24.94461036,19.679,19.661,55.0]
[1693807188156,24.94461036,19.679,19.661,80.25550551]
[1693807188652,24.94461036,19.679,19.662,25.25550551]
[1693807188856,24.94461036,19.679,19.663,55.0]
[1693807189051,24.94461036,19.679,19.663,80.25550551]
[1693807190362,24.94461036,19.679,19.664,25.25550551]
[1693807190549,4.94461036,19.679,19.665,55.0]
[1693807190751,24.94461036,19.68,19.666,25.25550551]
[1693807190951,24.94461036,19.68,19.667,55.0]
[1693807191260,24.94461036,19.68,19.667,80.25550551]
[1693807192544,24.94461036,19.68,19.67,25.63]
[1693807192740,24.94461036,19.68,19.671,55.0]
[1693807202763,24.94461036,19.68,19.664,15.44077274]
[1693807203066,24.94461036,19.68,19.664,40.69627825]
[1693807204054,24.94461036,19.68,19.665,55.0]
[1693807205454,24.94461036,19.68,19.665,80.25550551]
[1693807205779,24.94461036,19.68,19.666,25.25550551]
[1693807206064,24.94461036,19.68,19.667,55.0]
[1693807211170,4.94461036,19.68,19.667,55.0]
[1693807211477,4.94461036,19.68,19.67,25.63]
[1693807211662,4.94461036,19.685,19.671,55.0]
[1693807212573,4.94461036,19.686,19.671,55.0]
[1693807213380,25.63,19.68,19.668,25.25550551]
[1693807213584,25.63,19.68,19.658,15.16471784]
[1693807213585,25.63,19.68,19.663,15.5401831]
[1693807213873,24.94461036,19.679,19.66,25.63]
[1693807214081,115.05911036,19.679,19.66,25.63]
[1693807215372,122.98611036,19.679,19.656,25.63]
[1693807215676,122.98611036,19.679,19.655,57.41908403]
[1693807215876,74.04042233,19.678,19.655,57.41908403]
[1693807216079,74.04042233,19.678,19.652,15.25317742]
[1693807216080,32.87261036,19.677,19.652,15.25317742]
[1693807216381,97.84527388,19.677,19.652,15.25317742]
[1693807216874,7.32028036,19.677,19.66,25.63]
[1693807217175,4.94461036,19.679,19.661,57.41908403]
[1693807217377,24.94461036,19.679,19.661,82.67458954]
[1693807217973,24.94461036,19.679,19.662,55.0]
[1693807219780,24.94461036,19.679,19.66,25.63]
[1693807221076,24.94461036,19.679,19.661,55.0]
[1693807227167,24.94461036,19.679,19.66,25.63]
[1693807227371,74.04042233,19.678,19.656,57.41908403]
[1693807227573,4.94461036,19.677,19.657,20.0]
[1693807227881,57.37567,19.676,19.657,20.0]
[1693807228080,4.94461036,19.675,19.657,20.0]
[1693807228381,4.94461036,19.673,19.653,20.0]
[1693807228574,4.94461036,19.673,19.653,45.25550551]
[1693807228783,4.94461036,19.675,19.653,102.67458954]
[1693807229490,4.94461036,19.675,19.654,55.0]
[1693807229669,4.94461036,19.675,19.655,20.0]
[1693807229863,4.94461036,19.675,19.656,55.0]
[1693807230064,4.94461036,19.675,19.657,20.0]
[1693807230282,25.63,19.67,19.656,25.25550551]
[1693807230473,25.63,19.67,19.645,89.12462126]
[1693807230474,24.94461036,19.669,19.645,51.63441461]
[1693807230780,24.94461036,19.669,19.649,41.15912556]
[1693807230989,4.94461036,19.669,19.65,50.88550551]
[1693807231173,24.94461036,19.669,19.651,25.25550551]
[1693807231888,24.94461036,19.669,19.652,55.0]
[1693807232182,24.94461036,19.669,19.653,25.25550551]
[1693807232376,24.94461036,19.669,19.654,55.0]
[1693807235667,101.191,19.666,19.649,28.491077]
[1693807235873,7.939,19.649,19.62,25.63]
[1693807236075,30.58061036,19.66,19.63,25.63]
[1693807236279,75.0,19.659,19.63,25.63]
[1693807236484,25.63,19.65,19.63,25.63]
[1693807236785,20.0,19.649,19.63,25.63]
[1693807236969,117.1266,19.649,19.63,24.63]
[1693807237171,25.63,19.64,19.623,68.28567538]
[1693807237374,0.99999999,19.639,19.624,0.75626253]
[1693807237677,0.99999999,19.639,19.62,25.63]
[1693807237881,0.99999999,19.639,19.622,0.75626253]
[1693807238185,181.58,19.67,19.63,129.7]
[1693807238186,0.99999999,19.648,19.63,129.7]
[1693807238493,2.99999999,19.662,19.64,25.94]
[1693807238677,22.04042232,19.669,19.64,25.94]
[1693807238870,2.4246,19.668,19.64,25.94]
[1693807239186,25.94,19.66,19.632,103.76]
[1693807239391,2.99999999,19.659,19.633,107.93590551]
[1693807240483,22.99999999,19.659,19.633,107.93590551]
[1693807241185,22.99999999,19.659,19.633,52.93590551]
[1693807241875,2.99999999,19.657,19.633,52.93590551]
[1693807242485,2.99999999,19.657,19.634,55.0]
[1693807242783,2.99999999,19.657,19.635,20.0]
[1693807242979,2.99999999,19.657,19.636,55.0]
[1693807243189,2.99999999,19.657,19.637,20.0]